bitfinex/quotes_SOLUSD_20241223
["timestamp","ask_amount","ask_price","bid_price","bid_amount"]
[1734962487406,5.2945,182.45,182.3,57.79350341]
[1734962487624,5.2945,182.45,182.34,23.776884]
[1734962488023,1.02778766,182.44,182.34,23.776884]
[1734962488739,20.0,182.42,182.34,23.776884]
[1734962488959,20.0,182.42,182.29,44.59726149]
[1734962489239,1.02790831,182.46,182.33,20.82037749]
[1734962489440,1.02790831,182.46,182.34,23.902374]
[1734962489616,1.02773213,182.49,182.34,23.902374]
[1734962489818,0.12549,182.47,182.34,23.902374]
[1734962490025,1.02775082,182.47,182.34,23.902374]
[1734962490736,20.0,182.45,182.34,23.902374]
[1734962491115,20.0,182.45,182.33,44.72275149]
[1734962491318,20.0,182.45,182.33,23.902374]
[1734962491513,20.0,182.45,182.33,0.12549]
[1734962492033,20.0,182.45,182.34,23.776884]
[1734962492741,1.54031635,182.52,182.37,0.12549]
[1734962493060,1.02757728,182.49,182.37,0.12549]
[1734962494042,5.49778492,182.5,182.37,0.12549]
[1734962494842,5.49778492,182.5,182.37,20.94586749]
[1734962495042,5.49778492,182.5,182.4,23.776884]
[1734962495043,4.4702,182.5,182.4,23.776884]
[1734962495518,5.49758025,182.5,182.4,23.776884]
[1734962495718,4.4702,182.5,182.4,23.776884]
[1734962496249,20.0,182.48,182.4,23.776884]
[1734962496427,4.4702,182.5,182.41,0.12549]
[1734962496740,4.4702,182.5,182.43,23.776884]
[1734962497253,4.4702,182.5,182.4,23.776884]
[1734962497427,4.4702,182.49,182.4,23.776884]
[1734962497743,4.4702,182.49,182.41,0.12549]
[1734962498251,4.4702,182.5,182.41,20.94586749]
[1734962498427,4.4702,182.5,182.43,0.12549]
[1734962502453,4.4702,182.5,182.43,20.94586749]
[1734962502639,4.4702,182.5,182.44,23.776884]
[1734962502833,4.4702,182.5,182.45,0.12549]
[1734962503150,4.4702,182.5,182.45,20.94586749]
[1734962503329,4.4702,182.5,182.46,23.776884]
[1734962503543,4.4702,182.5,182.45,0.12549]
[1734962503750,4.4702,182.5,182.44,23.776884]
[1734962504172,4.4702,182.5,182.37,34.52817749]
[1734962504467,4.4702,182.5,182.39,20.82037749]
[1734962504883,4.4702,182.5,182.4,20.82037749]
[1734962505172,4.4702,182.5,182.41,0.12549]
[1734962505347,3.17582311,182.49,182.41,0.12549]
[1734962505673,3.17582311,182.49,182.42,23.776884]
[1734962506054,3.17582311,182.48,182.42,23.776884]
[1734962506358,3.17582311,182.48,182.44,23.776884]
[1734962506767,4.4702,182.5,182.44,23.776884]
[1734962507068,4.4702,182.5,182.43,23.776884]
[1734962508070,20.0,182.48,182.38,20.82037749]
[1734962508371,20.0,182.48,182.37,34.52867749]
[1734962508557,20.0,182.48,182.38,0.12549]
[1734962509149,20.0,182.47,182.38,0.12549]
[1734962509550,20.0,182.47,182.38,23.902374]
[1734962510570,20.0,182.47,182.35,20.82037749]
[1734962510759,20.0,182.47,182.33,34.53097749]
[1734962511069,20.0,182.47,182.34,20.82037749]
[1734962511271,20.0,182.47,182.37,0.12549]
[1734962511849,20.0,182.47,182.4,0.12549]
[1734962512052,20.0,182.48,182.4,0.12549]
[1734962512672,20.0,182.48,182.39,23.776884]
[1734962513656,21.02743084,182.47,182.34,20.0]
[1734962513954,21.02743084,182.47,182.36,20.0]
[1734962514857,20.0,182.48,182.39,23.902374]
[1734962515076,20.0,182.49,182.4,20.82037749]
[1734962515278,20.0,182.49,182.39,23.776884]
[1734962517181,20.0,182.48,182.39,23.776884]
[1734962517756,4.4702,182.5,182.4,0.12549]
[1734962520717,4.4702,182.5,182.41,23.776884]
[1734962521097,4.4702,182.5,182.4,0.12549]
[1734962521296,4.4702,182.5,182.43,23.776884]
[1734962522021,3.9702,182.5,182.43,23.776884]
[1734962522605,3.9702,182.5,182.43,22.951484]
[1734962523273,3.9702,182.5,182.44,0.12549]
[1734962525595,3.9702,182.5,182.43,22.951484]
[1734962525793,3.9702,182.5,182.31,30.0]
[1734962525794,20.0,182.48,182.35,20.82037749]
[1734962526419,20.0,182.48,182.36,0.12549]
[1734962526798,23.9702,182.5,182.35,20.82037749]
[1734962526997,20.0,182.48,182.38,20.0]
[1734962527221,20.0,182.48,182.39,23.776884]
[1734962527693,20.0,182.49,182.39,23.776884]
[1734962528119,20.0,182.48,182.39,23.776884]
[1734962528433,20.0,182.47,182.39,23.776884]
[1734962528599,20.0,182.47,182.36,0.12549]
[1734962529427,20.0,182.47,182.36,20.94586749]
[1734962530027,20.0,182.47,182.37,23.776884]
[1734962530640,20.0,182.47,182.37,44.59726149]
[1734962530839,5.3401,182.5,182.4,23.902374]
[1734962530840,3.9702,182.5,182.4,23.902374]
[1734962531007,3.9702,182.5,182.4,23.776884]
[1734962531320,3.9702,182.5,182.39,23.776884]
[1734962531525,3.9702,182.5,182.4,20.94586749]
[1734962531845,3.9702,182.5,182.42,20.12549]
[1734962531998,3.9702,182.5,182.43,23.776884]
[1734962532508,3.9702,182.5,182.42,23.902374]
[1734962532728,3.9702,182.5,182.42,20.94586749]
[1734962532936,3.9702,182.5,182.43,23.776884]
[1734962533119,3.9702,182.5,182.43,44.59726149]
[1734962533325,3.9702,182.5,182.45,20.82037749]
[1734962533510,3.9702,182.5,182.44,20.82037749]
[1734962533726,3.9702,182.5,182.45,23.776884]
[1734962534128,3.9702,182.5,182.45,44.59726149]
[1734962535348,3.9702,182.5,182.49,23.776884]
[1734962535731,3.9702,182.5,182.49,44.59726149]
[1734962536237,3.9702,182.5,182.49,23.776884]
[1734962536414,3.9702,182.5,182.49,44.59726149]
[1734962536742,3.9702,182.5,182.49,23.776884]
[1734962537654,3.9702,182.5,182.49,44.72275149]
[1734962538433,3.9702,182.5,182.49,98.34606122]
[1734962538641,1.04e-05,182.51,182.5,91.22428373]
[1734962538839,1.04e-05,182.53,182.52,20.12549]
[1734962539042,1.04e-05,182.53,182.52,119.16643871]
[1734962539445,1.04e-05,182.55,182.54,43.902374]
[1734962539752,1.04e-05,182.55,182.54,64.72275149]
[1734962539935,1.04e-05,182.55,182.54,78.41835149]
[1734962541749,1.04e-05,182.55,182.54,64.72275149]
[1734962542056,1.04e-05,182.55,182.52,20.82037749]
[1734962542229,1.04e-05,182.55,182.51,20.82037749]
[1734962542638,1.04e-05,182.55,182.5,20.82037749]
[1734962542964,1.04e-05,182.55,182.51,20.82037749]
[1734962543627,1.04e-05,182.55,182.5,20.82037749]
[1734962544035,1.04e-05,182.55,182.51,23.776884]
[1734962544950,1.04e-05,182.55,182.51,44.59726149]
[1734962545152,1.04e-05,182.55,182.51,23.776884]
[1734962546332,1.04e-05,182.55,182.51,44.59726149]
[1734962547447,1.04e-05,182.55,182.51,23.776884]
[1734962548354,1.04e-05,182.55,182.52,20.82037749]
[1734962548524,1.04e-05,182.55,182.53,23.776884]
[1734962549131,1.04e-05,182.55,182.52,23.776884]
[1734962550559,1.04e-05,182.55,182.51,23.776884]
[1734962551076,1.04e-05,182.55,182.5,23.776884]
[1734962551361,1.04e-05,182.55,182.5,44.59726149]
[1734962555046,1.04e-05,182.55,182.51,0.12549]
[1734962555250,1.04e-05,182.55,182.54,44.72275149]
[1734962555853,1.04e-05,182.55,182.54,98.34606122]
[1734962556048,0.497,182.57,182.54,114.80606122]
[1734962556250,0.6767104,182.69,182.59,20.0]
[1734962556453,0.6767104,182.69,182.63,12.96677819]
[1734962556662,0.6767104,182.69,182.64,36.74366219]
[1734962557049,0.6767104,182.69,182.68,36.74366219]
[1734962558241,0.6767104,182.69,182.68,44.5087597]
[1734962559079,0.6767104,182.69,182.68,23.776884]
[1734962559673,0.6767104,182.69,182.68,44.5087597]
[1734962560643,0.6767104,182.69,182.68,98.25755943]
[1734962561652,1.04e-05,182.69,182.68,135.44943513]
[1734962561970,2.6997,182.85,182.76,0.12549]
[1734962562264,0.6767104,182.88,182.8,23.776884]
[1734962562972,0.6767104,182.88,182.8,44.5087597]
[1734962563166,0.6767104,182.88,182.82,20.7318757]
[1734962563371,0.6767104,182.88,182.84,20.7318757]
[1734962563684,0.6767104,182.88,182.85,20.7318757]
[1734962563888,0.6767104,182.88,182.86,20.7318757]
[1734962564686,0.6767104,182.88,182.86,23.776884]
[1734962565287,0.6767104,182.88,182.86,44.5087597]
[1734962565473,0.6767104,182.88,182.86,22.127384]
[1734962566084,0.6767104,182.88,182.82,53.62330973]
[1734962566305,0.6767104,182.88,182.83,20.7318757]
[1734962566493,0.6767104,182.88,182.85,20.8573657]
[1734962566813,0.6767104,182.88,182.86,20.7318757]
[1734962566960,0.6767104,182.88,182.85,20.8573657]
[1734962567158,0.6767104,182.88,182.86,20.7318757]
[1734962567659,0.6767104,182.88,182.82,20.7318757]
[1734962567992,0.6767104,182.88,182.83,23.776884]
[1734962568577,0.6767104,182.88,182.85,44.5087597]
[1734962569064,0.6767104,182.88,182.85,23.776884]
[1734962569294,0.6767104,182.88,182.83,44.5087597]
[1734962569491,0.6767104,182.88,182.83,23.776884]
[1734962570063,0.6767104,182.88,182.79,20.7318757]
[1734962570263,0.6767104,182.88,182.8,20.7318757]
[1734962570501,0.6767104,182.88,182.82,20.7318757]
[1734962571497,0.6767104,182.88,182.86,20.7318757]
[1734962571668,0.6767104,182.88,182.87,20.7318757]
[1734962572087,0.6767104,182.88,182.87,44.5087597]
[1734962572469,0.6767104,182.88,182.87,44.6342497]
[1734962572777,0.6767104,182.88,182.87,98.25755943]
[1734962573281,0.6767104,182.88,182.87,44.5087597]
[1734962573673,0.6767104,182.88,182.87,98.25755943]
[1734962575793,0.6767104,182.88,182.87,118.98943513]
[1734962576378,0.6767104,182.88,182.87,98.25755943]
[1734962578116,0.6767104,182.88,182.87,118.98943513]
[1734962578475,9.323,183.03,182.88,0.12549]
[1734962578702,9.323,183.03,182.97,23.776884]
[1734962579300,0.6767104,183.06,182.97,23.776884]
[1734962579301,0.6767104,183.06,182.97,44.5087597]
[1734962579510,0.6767104,183.06,182.98,20.7318757]
[1734962579716,0.6767104,183.06,182.99,23.776884]
[1734962580802,20.0,183.05,182.99,23.776884]
[1734962581127,0.6767104,183.06,182.99,23.776884]
[1734962581299,0.6767104,183.06,182.98,20.7318757]
[1734962581300,0.6767104,183.06,183.05,20.7318757]
[1734962581503,0.6767104,183.06,183.05,23.776884]
[1734962581942,0.6767104,183.06,183.05,44.5087597]
[1734962582517,0.6767104,183.06,183.05,44.6342497]
[1734962582716,0.6767104,183.06,183.05,65.3661254]
[1734962583011,6.0542,183.21,183.1,23.902374]
[1734962583339,6.0542,183.26,183.16,20.7318757]
[1734962583650,2.9642,183.28,183.2,20.7318757]
[1734962583862,2.9642,183.28,183.21,23.776884]
[1734962584014,2.9642,183.28,183.2,20.7318757]
[1734962584361,4.3282,183.28,183.15,20.7318757]
[1734962584563,1.02319171,183.27,183.15,23.776884]
[1734962585116,21.3642,183.25,183.14,23.776884]
[1734962585539,21.3642,183.25,183.13,23.776884]
[1734962585844,21.3642,183.25,183.13,23.902374]
[1734962586025,21.3642,183.25,183.12,20.7318757]
[1734962586026,1.70003585,183.24,183.12,23.776884]
[1734962586413,1.48989,183.23,183.12,23.776884]
[1734962586629,0.12549,183.21,183.09,20.7318757]
[1734962587026,0.12549,183.21,183.1,20.7318757]
[1734962587414,6.6467,183.2,183.09,20.7318757]
[1734962587616,20.0,183.17,183.07,20.7318757]
[1734962587817,20.0,183.17,183.06,20.7318757]
[1734962588013,1.02376837,183.16,183.05,20.7318757]
[1734962588322,23.78446837,183.16,183.05,20.7318757]
[1734962588531,22.7607,183.16,183.06,20.7318757]
[1734962588837,1.02385088,183.19,183.09,20.7318757]
[1734962589136,6.6467,183.2,183.13,20.7318757]
[1734962589329,1.3644,183.23,183.14,0.12549]
[1734962589543,1.3644,183.23,183.15,20.7318757]
[1734962589970,1.3644,183.23,183.16,23.776884]
[1734962590122,0.6767104,183.24,183.22,20.7318757]
[1734962590322,0.6767104,183.24,183.23,20.7318757]
[1734962590522,0.6767104,183.24,183.23,44.5087597]
[1734962591257,0.6767104,183.24,183.23,44.6342497]
[1734962591923,0.6767104,183.24,183.23,44.5087597]
[1734962593065,0.6767104,183.24,183.23,44.6342497]
[1734962594153,0.6767104,183.24,183.23,65.3661254]
[1734962594326,0.6767104,183.24,183.23,44.6342497]
[1734962595235,0.6767104,183.24,183.23,20.7318757]
[1734962597122,0.6767104,183.24,183.23,41.4637514]
[1734962597329,6.0321,183.37,183.27,0.12549]
[1734962597531,6.1847,183.43,183.33,20.7318757]
[1734962597927,6.1847,183.43,183.32,20.7318757]
[1734962598147,6.1847,183.43,183.33,20.7318757]
[1734962598336,6.1847,183.43,183.37,20.7318757]
[1734962598839,6.1847,183.43,183.36,20.7318757]
[1734962599168,0.3625086,183.42,183.36,20.7318757]
[1734962599332,0.3625086,183.42,183.38,20.7318757]
[1734962599537,0.3625086,183.42,183.37,20.7318757]
[1734962599741,0.3625086,183.42,183.38,20.8573657]
[1734962600545,0.3625086,183.42,183.39,20.7318757]
[1734962601073,0.3625086,183.42,183.41,20.7318757]
[1734962602334,0.3625086,183.42,183.41,20.8573657]
[1734962602572,0.3625086,183.42,183.41,44.6342497]
[1734962602763,0.3625086,183.42,183.41,65.3661254]
[1734962603463,8.6e-06,183.42,183.41,65.3661254]
[1734962603879,8.6e-06,183.42,183.41,20.8573657]
[1734962604246,8.6e-06,183.42,183.41,20.7318757]
[1734962604685,8.6e-06,183.42,183.39,20.7318757]
[1734962604859,8.6e-06,183.42,183.38,20.7318757]
[1734962605078,8.6e-06,183.42,183.37,20.7318757]
[1734962605283,8.6e-06,183.42,183.36,20.7318757]
[1734962605699,8.6e-06,183.42,183.35,0.12549]
[1734962605982,8.6e-06,183.42,183.38,20.7318757]
[1734962606359,8.6e-06,183.42,183.36,20.7318757]
[1734962607071,8.6e-06,183.42,183.35,20.7318757]
[1734962607283,8.6e-06,183.42,183.32,20.7318757]
[1734962607574,20.0,183.41,183.3,20.7318757]
[1734962607769,20.0,183.41,183.31,20.7318757]
[1734962608173,8.6e-06,183.42,183.33,20.7318757]
[1734962608363,8.6e-06,183.42,183.34,20.7318757]
[1734962608965,8.6e-06,183.42,183.32,20.7318757]
[1734962609162,1.02227645,183.42,183.32,20.7318757]
[1734962609387,43.776884,183.41,183.27,20.7318757]
[1734962609589,1.02259775,183.4,183.27,20.7318757]
[1734962609888,23.776884,183.39,183.26,20.7318757]
[1734962610088,20.0,183.36,183.27,20.7318757]
[1734962610699,21.0225419,183.38,183.27,20.7318757]
[1734962611061,21.0225419,183.38,183.28,20.7318757]
[1734962611691,21.0225419,183.38,183.27,20.7318757]
[1734962613170,1.3633,183.37,183.26,20.7318757]
[1734962613370,43.776884,183.36,183.24,20.7318757]
[1734962613610,20.0,183.31,183.19,20.7318757]
[1734962613770,1.02306906,183.3,183.19,20.7318757]
[1734962613972,1.02306906,183.3,183.21,20.7318757]
[1734962614294,1.02307906,183.33,183.28,20.7318757]
[1734962614482,8.9865,183.34,183.28,20.7318757]
[1734962615501,8.9865,183.34,183.24,20.7318757]
[1734962616212,8.9865,183.34,183.25,20.7318757]
[1734962616367,8.9865,183.34,183.24,20.7318757]
[1734962616574,8.9865,183.34,183.16,128.9]
[1734962616575,20.0,183.31,183.22,20.7318757]
[1734962616974,20.0,183.31,183.21,20.7318757]
[1734962617175,20.0,183.31,183.22,20.7318757]
[1734962617482,1.02300677,183.3,183.2,20.7318757]
[1734962617885,1.02300677,183.3,183.13,131.8397]
[1734962617886,23.902374,183.29,183.18,20.7318757]
[1734962618094,23.776884,183.27,183.17,20.7318757]
[1734962618390,1.02326825,183.26,183.17,20.7318757]
[1734962618590,20.0,183.25,183.15,20.7318757]
[1734962618992,9.3465,183.23,183.13,20.7318757]
[1734962619174,9.3465,183.23,183.12,20.7318757]
[1734962619378,9.3465,183.23,183.13,20.7318757]
[1734962620577,20.0,183.2,183.09,20.7318757]
[1734962621283,20.0,183.2,183.1,20.7318757]
[1734962621693,21.02362205,183.2,183.1,20.7318757]
[1734962623297,1.3647,183.19,183.08,20.7318757]
[1734962623494,2.38834781,183.19,183.08,20.7318757]
[1734962623723,20.0,183.2,183.11,20.7318757]
[1734962624705,20.0,183.2,183.08,20.7318757]
[1734962624882,2.38824983,183.19,183.07,20.7318757]
[1734962625082,2.38824983,183.19,183.06,20.7318757]
[1734962625298,2.38824983,183.19,183.09,20.7318757]
[1734962625475,20.0,183.2,183.11,20.7318757]
[1734962625976,9.3465,183.23,183.13,20.7318757]
[1734962626194,9.3465,183.23,183.14,20.7318757]
[1734962626396,1.02343479,183.22,183.12,20.7318757]
[1734962626673,2.38783479,183.22,183.1,20.7318757]
[1734962627302,20.0,183.2,183.09,20.7318757]
[1734962627471,1.02367725,183.19,183.06,20.7318757]
[1734962628087,21.02367725,183.19,183.08,20.7318757]
[1734962628401,1.02368439,183.19,183.08,20.7318757]
[1734962628736,20.0,183.2,183.12,20.7318757]
[1734962628878,20.0,183.2,183.1,20.7318757]
[1734962629415,1.02360873,183.19,183.09,20.7318757]
[1734962629699,1.02360873,183.19,183.08,20.7318757]
[1734962631004,21.3646,183.2,183.1,20.7318757]
[1734962631181,1.0235833,183.19,183.09,20.7318757]
[1734962632494,21.3646,183.2,183.09,20.7318757]
[1734962632692,1.02363881,183.19,183.09,20.7318757]
[1734962633898,1.3647,183.18,183.07,20.7318757]
[1734962634091,1.02377897,183.17,183.07,20.7318757]
[1734962634398,1.02377897,183.17,183.04,128.9]
[1734962634611,1.02377897,183.17,183.05,20.7318757]
[1734962634909,1.02377897,183.17,183.07,20.7318757]
[1734962635227,1.3647,183.18,183.07,20.7318757]
[1734962635746,1.02374836,183.19,183.09,20.7318757]
[1734962638021,25.267174,183.18,183.07,20.7318757]
[1734962638196,1.0238013,183.17,183.07,20.7318757]
[1734962638922,1.3649,183.16,183.07,20.7318757]
[1734962639100,1.3649,183.16,183.08,20.7318757]
[1734962639495,1.3649,183.16,183.06,20.7318757]
[1734962639692,1.3649,183.16,183.05,20.7318757]
[1734962640002,20.0,183.11,183.02,20.7318757]
[1734962640208,7.28107192,183.14,183.03,20.7318757]
[1734962640412,20.0,183.1,183.01,20.7318757]
[1734962640601,20.0,183.1,182.97,20.7318757]
[1734962640602,20.0,183.11,183.04,20.7318757]
[1734962640804,3.1358,183.13,183.06,20.7318757]
[1734962643222,11.61236455,183.19,183.1,20.7318757]
[1734962643402,10.5884,183.19,183.06,20.7318757]
[1734962643732,9.2237,183.19,183.14,20.7318757]
[1734962644022,6.2924,183.19,183.12,20.7318757]
[1734962644412,1.3645,183.22,183.12,20.7318757]
[1734962645218,9.2237,183.24,183.12,20.7318757]
[1734962645417,9.2237,183.24,183.13,20.7318757]
[1734962645624,9.2237,183.24,183.12,20.7318757]
[1734962646024,9.2237,183.24,183.09,0.12549]
[1734962646025,18.4474,183.24,183.14,20.7318757]
[1734962646324,1.364,183.28,183.18,20.7318757]
[1734962646913,1.364,183.28,183.14,13.6504]
[1734962646914,1.364,183.28,183.19,20.7318757]
[1734962647315,2.9313,183.29,183.2,20.7318757]
[1734962650335,9.1106,183.35,183.25,20.7318757]
[1734962650505,9.1106,183.35,183.26,20.7318757]
[1734962650837,9.1106,183.35,183.27,20.7318757]
[1734962651251,9.1106,183.35,183.26,20.7318757]
[1734962651604,9.1106,183.38,183.3,20.7318757]
[1734962651810,9.3203,183.4,183.32,20.7318757]
[1734962652103,9.3203,183.4,183.33,20.7318757]
[1734962652316,9.3203,183.45,183.34,20.7318757]
[1734962652516,9.3203,183.45,183.35,20.7318757]
[1734962653423,1.02223176,183.44,183.33,20.7318757]
[1734962653934,23.776884,183.43,183.31,20.7318757]
[1734962654255,9.3203,183.45,183.33,20.7318757]
[1734962654619,9.3203,183.45,183.34,20.7318757]
[1734962655137,9.3203,183.45,183.36,20.7318757]
[1734962655520,9.3203,183.49,183.34,23.776884]
[1734962655710,8.9397,183.5,183.41,20.7318757]
[1734962656111,8.9397,183.5,183.4,20.7318757]
[1734962656306,8.9397,183.5,183.35,0.12549]
[1734962656509,0.6876591,183.53,183.45,20.7318757]
[1734962656714,0.6876591,183.53,183.44,20.7318757]
[1734962657419,0.6876591,183.53,183.38,20.0]
[1734962657632,0.6876591,183.53,183.43,20.7318757]
[1734962657831,0.6876591,183.53,183.44,20.7318757]
[1734962658019,0.6876591,183.53,183.46,20.7318757]
[1734962658440,0.6876591,183.53,183.48,20.7318757]
[1734962658631,0.6876591,183.53,183.5,20.7318757]
[1734962658820,0.6876591,183.53,183.51,20.7318757]
[1734962659030,0.6876591,183.53,183.52,20.7318757]
[1734962659229,0.6876591,183.53,183.52,20.8573657]
[1734962659537,2.18079924,183.74,183.52,20.7318757]
[1734962659538,2.8978,183.66,183.52,20.7318757]
[1734962659745,0.1506956,183.53,183.52,20.7318757]
[1734962663163,0.1506956,183.53,183.5,20.7318757]
[1734962664151,0.1506956,183.53,183.47,20.7318757]
[1734962664323,0.1506956,183.53,183.48,20.7318757]
[1734962664746,0.1506956,183.53,183.47,20.7318757]
[1734962665129,0.1506956,183.53,183.48,20.7318757]
[1734962665742,0.1506956,183.53,183.49,20.7318757]
[1734962666129,0.1506956,183.53,183.5,20.7318757]
[1734962666460,0.1506956,183.53,183.52,20.7318757]
[1734962667936,0.1506956,183.53,183.51,20.7318757]
[1734962668556,0.1506956,183.53,183.49,20.7318757]
[1734962669156,0.1506956,183.53,183.52,20.7318757]
[1734962670132,0.1506956,183.53,183.51,20.7318757]
[1734962671156,0.1506956,183.53,183.5,20.7318757]
[1734962671345,0.1506956,183.53,183.52,20.7318757]
[1734962672638,0.1506956,183.53,183.51,20.7318757]
[1734962672841,0.1506956,183.53,183.48,20.7318757]
[1734962673736,0.1506956,183.53,183.49,20.7318757]
[1734962674747,0.1506956,183.53,183.5,20.7318757]
[1734962675553,0.1506956,183.53,183.48,20.7318757]
[1734962675758,0.1506956,183.53,183.47,20.7318757]
[1734962675948,0.1506956,183.53,183.48,20.7318757]
[1734962676281,0.1506956,183.53,183.5,20.7318757]
[1734962676764,0.1506956,183.53,183.49,20.7318757]
[1734962677468,0.1506956,183.53,183.47,20.7318757]
[1734962677768,0.1506956,183.53,183.51,20.7318757]
[1734962677969,0.1506956,183.53,183.5,20.7318757]
[1734962678637,0.1506956,183.53,183.51,20.7318757]
[1734962679261,0.1506956,183.53,183.52,20.7318757]
[1734962681758,0.1506956,183.53,183.5,20.7318757]
[1734962682144,0.1506956,183.53,183.51,20.7318757]
[1734962682470,0.1506956,183.53,183.5,20.7318757]
[1734962682642,0.1506956,183.53,183.49,20.7318757]
[1734962683040,0.1506956,183.53,183.52,20.7318757]
[1734962683764,0.6831623,183.57,183.52,20.8573657]
[1734962683964,0.6831623,183.57,183.56,20.7318757]
[1734962687366,0.6831623,183.57,183.55,20.7318757]
[1734962687759,0.6831623,183.57,183.56,20.7318757]
[1734962689970,0.6831623,183.57,183.53,20.7318757]
[1734962691969,0.6831623,183.57,183.5,20.7318757]
[1734962692492,0.6831623,183.57,183.51,20.7318757]
[1734962693357,0.6831623,183.57,183.5,20.7318757]
[1734962694595,0.6831623,183.57,183.48,20.7318757]
[1734962694769,6.1247,183.55,183.44,20.7318757]
[1734962695081,23.776884,183.53,183.42,20.7318757]
[1734962695256,1.02174902,183.54,183.43,20.7318757]
[1734962696392,23.776884,183.53,183.43,20.7318757]
[1734962696594,23.776884,183.51,183.4,20.7318757]
[1734962696799,26.696684,183.49,183.33,13.6365]
[1734962697090,51.03846246,183.48,183.35,20.7318757]
[1734962697256,7.26157846,183.48,183.37,20.7318757]
[1734962697454,6.2394,183.48,183.4,20.7318757]
[1734962697669,6.2394,183.48,183.41,20.7318757]
[1734962697847,6.2394,183.48,183.44,20.7318757]
[1734962698059,6.5667,183.53,183.47,20.7318757]
[1734962698476,6.5667,183.53,183.49,20.7318757]
[1734962698663,6.5667,183.53,183.43,13.6289]
[1734962698858,6.5667,183.53,183.48,20.7318757]
[1734962699179,6.5667,183.53,183.49,20.7318757]
[1734962699371,0.6831623,183.57,183.52,20.7318757]
[1734962699569,0.6831623,183.57,183.49,20.7318757]
[1734962699767,0.6831623,183.57,183.47,20.7318757]
[1734962699972,0.6831623,183.57,183.48,20.7318757]
[1734962700350,0.6831623,183.57,183.47,20.7318757]
[1734962700560,1.02158871,183.56,183.47,20.7318757]
[1734962700764,0.6831623,183.57,183.47,20.7318757]
[1734962700968,20.6831623,183.57,183.47,20.7318757]
[1734962701185,20.6831623,183.57,183.48,20.7318757]
[1734962701559,0.6831623,183.57,183.48,20.7318757]
[1734962701851,0.6831623,183.57,183.5,20.7318757]
[1734962702452,0.6831623,183.57,183.54,20.7318757]
[1734962703469,0.6831623,183.57,183.55,20.7318757]
[1734962704683,0.6831623,183.57,183.53,20.7318757]
[1734962704896,0.6831623,183.57,183.51,20.7318757]
[1734962705269,0.6831623,183.57,183.53,20.7318757]
[1734962706601,0.6831623,183.57,183.52,20.7318757]
[1734962708359,0.6831623,183.57,183.55,20.7318757]
[1734962708561,0.6831623,183.57,183.53,20.7318757]
[1734962709999,0.6831623,183.57,183.5,20.7318757]
[1734962713418,0.6831623,183.57,183.52,20.7318757]
[1734962713902,0.6831623,183.57,183.54,20.7318757]
[1734962714707,0.6831623,183.57,183.56,20.7318757]
[1734962714882,0.6831623,183.57,183.56,20.8573657]
[1734962715906,0.6831623,183.57,183.56,20.7318757]
[1734962717590,0.6831623,183.57,183.56,20.8573657]
[1734962721112,0.6831623,183.57,183.56,20.7318757]
[1734962721488,0.6831623,183.57,183.56,20.8573657]
[1734962721788,0.6831623,183.57,183.56,44.6342497]
[1734962722181,0.6831623,183.57,183.56,20.8573657]
[1734962723018,7.9901,183.69,183.59,20.0]
[1734962723228,6.6291,183.69,183.65,20.7318757]
[1734962723586,3.0166,183.7,183.65,20.7318757]
[1734962724113,3.0166,183.7,183.66,20.7318757]
[1734962724293,6.6291,183.73,183.66,20.7318757]
[1734962724488,6.6291,183.73,183.65,20.7318757]
[1734962724822,6.6291,183.73,183.63,20.7318757]
[1734962725002,1.02066559,183.72,183.62,20.7318757]
[1734962725408,1.02066559,183.72,183.63,20.7318757]
[1734962725716,1.02066559,183.72,183.62,20.7318757]
[1734962725926,7.64979225,183.73,183.63,20.7318757]
[1734962726118,6.6291,183.73,183.63,20.7318757]
[1734962727021,7.64974237,183.73,183.63,20.7318757]
[1734962727212,1.3607,183.72,183.62,20.7318757]
[1734962727415,1.02067805,183.71,183.62,20.7318757]
[1734962727724,6.6291,183.73,183.69,20.7318757]
[1734962727926,3.6997623,183.75,183.71,20.7318757]
[1734962728225,0.6831623,183.75,183.71,20.7318757]
[1734962728526,0.6831623,183.75,183.73,20.7318757]
[1734962730111,0.6831623,183.75,183.72,20.7318757]
[1734962731416,0.6831623,183.75,183.7,20.7318757]
[1734962732115,0.6831623,183.75,183.71,20.7318757]
[1734962732620,0.6831623,183.75,183.72,20.7318757]
[1734962733126,0.6831623,183.75,183.66,13.6119]
[1734962733127,0.6831623,183.75,183.74,20.7318757]
[1734962733327,9.6457,183.86,183.73,0.12549]
[1734962733528,9.6457,183.86,183.81,20.7318757]